bitfinex/quotes_SOLUSD_20251009
["timestamp","ask_amount","ask_price","bid_price","bid_amount"]
[1759968961700,46.86266315,228.42,228.3,10.95013356]
[1759968961906,0.66,228.41,228.38,1.29543843]
[1759968962107,0.66,228.4,228.38,1.29543843]
[1759968962416,35.91847541,228.39,228.38,1.29543843]
[1759968963789,31.54,228.39,228.38,1.29543843]
[1759968966017,30.88,228.39,228.38,1.29543843]
[1759968966998,30.84,228.42,228.38,1.29543843]
[1759968967196,31.54,228.42,228.41,1.29543843]
[1759968968100,35.91790035,228.42,228.41,1.29543843]
[1759968969323,35.91790035,228.42,228.4,1.29543843]
[1759968969620,0.7,228.41,228.4,1.29543843]
[1759968969805,135.0,228.41,228.27,10.95172969]
[1759968970010,4.37847541,228.39,228.37,1.29543843]
[1759968970198,30.86,228.38,228.37,1.29543843]
[1759968970397,31.56,228.38,228.37,1.29543843]
[1759968972224,30.86,228.38,228.37,1.29543843]
[1759968973329,134.3,228.41,228.37,1.29543843]
[1759968973330,30.84,228.4,228.37,1.29543843]
[1759968973633,30.84,228.4,228.39,1.29543843]
[1759968977306,0.7,228.44,228.39,5.67391384]
[1759968977508,31.52,228.44,228.43,1.29543843]
[1759968977708,30.82,228.44,228.43,1.29543843]
[1759968978623,30.84,228.46,228.43,5.67306867]
[1759968978818,30.84,228.46,228.45,1.29543843]
[1759968979031,0.2,228.49,228.45,1.29543843]
[1759968979200,31.56,228.48,228.41,4.3779754]
[1759968979402,31.56,228.48,228.47,1.29543843]
[1759968980517,35.9367507,228.48,228.47,1.29543843]
[1759968982304,31.56,228.48,228.47,1.29543843]
[1759968982523,0.2,228.49,228.47,1.29543843]
[1759968982827,0.2,228.49,228.48,1.29543843]
[1759968984129,0.2,228.49,228.48,1.38543843]
[1759968984329,0.2,228.49,228.48,5.76218913]
[1759968984866,0.2,228.5,228.48,26.56218913]
[1759968985032,0.2,228.5,228.49,1.38543843]
[1759968987150,0.2,228.5,228.49,5.76199757]
[1759968988850,0.2,228.5,228.49,16.63847278]
[1759968989269,0.2,228.52,228.51,20.8]
[1759968989432,0.2,228.52,228.51,22.09543843]
[1759968989632,0.2,228.52,228.51,22.18543843]
[1759968989827,0.2,228.54,228.52,10.87647521]
[1759968990140,0.2,228.55,228.53,12.17191364]
[1759968990344,0.2,228.55,228.54,27.27719215]
[1759968990557,0.2,228.55,228.54,27.36719215]
[1759968990853,0.2,228.55,228.54,33.06191364]
[1759968991146,0.2,228.55,228.54,32.97191364]
[1759968991354,0.2,228.55,228.54,37.34751528]
[1759968992251,0.2,228.56,228.55,20.8]
[1759968992427,0.2,228.56,228.55,27.27719215]
[1759968993259,0.2,228.56,228.55,31.65260234]
[1759968993734,0.2,228.56,228.55,42.52907755]
[1759968993936,0.2,228.59,228.56,10.87647521]
[1759968994134,0.2,228.59,228.57,6.47719215]
[1759968995733,0.2,228.59,228.57,10.85221949]
[1759968999846,0.2,228.59,228.57,8.41503568]
[1759969000641,0.2,228.59,228.57,8.50503568]
[1759969000845,0.2,228.59,228.57,8.41503568]
[1759969001852,0.89,228.58,228.57,8.41503568]
[1759969002047,0.89,228.58,228.57,39.21503568]
[1759969002249,0.89,228.58,228.56,25.17521023]
[1759969002442,0.2,228.58,228.57,2.02000417]
[1759969003154,5.2748489,228.58,228.55,2.02000417]
[1759969003467,0.7,228.57,228.56,2.02000417]
[1759969008784,5.07502734,228.57,228.56,2.02000417]
[1759969013985,5.07502734,228.57,228.52,2.02000417]
[1759969014172,0.7,228.56,228.52,2.02000417]
[1759969014493,0.7,228.55,228.52,2.02000417]
[1759969014786,0.7,228.54,228.52,2.02000417]
[1759969015189,5.07579311,228.53,228.52,2.02000417]
[1759969021410,0.7,228.57,228.52,2.02000417]
[1759969021575,5.07502734,228.57,228.56,2.02000417]
[1759969023793,5.07502734,228.57,228.55,2.02000417]
[1759969024005,0.7,228.56,228.52,2.02000417]
[1759969024196,0.7,228.55,228.52,2.02000417]
[1759969024397,0.7,228.54,228.51,2.02000417]
[1759969024602,0.7,228.53,228.52,2.02000417]
[1759969025981,5.07579311,228.53,228.52,2.02000417]
[1759969026276,5.07579311,228.53,228.45,38.15972752]
[1759969026478,0.67,228.52,228.51,2.02000417]
[1759969027003,4.37579311,228.53,228.51,2.02000417]
[1759969027194,4.37579311,228.53,228.52,2.02000417]
[1759969027575,5.04579311,228.53,228.52,2.02000417]
[1759969030591,5.04579311,228.53,228.51,2.02000417]
[1759969030790,0.67,228.52,228.51,2.02000417]
[1759969032101,4.37579311,228.53,228.51,2.02000417]
[1759969032297,4.37560164,228.54,228.52,2.02000417]
[1759969032492,5.04560164,228.54,228.47,2.11000417]
[1759969032689,5.04560164,228.54,228.53,2.02000417]
[1759969035306,0.67,228.54,228.53,2.02000417]
[1759969035504,30.72,228.54,228.53,2.02000417]
[1759969036086,4.37502734,228.57,228.53,2.02000417]
[1759969036282,30.92,228.58,228.56,2.02000417]
[1759969036499,35.96483594,228.58,228.57,2.02000417]
[1759969036804,0.87,228.58,228.49,25.17637322]
[1759969037010,0.67,228.57,228.56,2.02000417]
[1759969037985,0.2,228.58,228.56,2.02000417]
[1759969038185,4.57483594,228.58,228.57,2.02000417]
[1759969038415,5.24483594,228.58,228.57,2.02000417]
[1759969039419,5.24483594,228.58,228.53,4.3757785]
[1759969039621,5.24483594,228.58,228.57,2.02000417]
[1759969042016,7.26484011,228.58,228.49,20.8]
[1759969042201,0.67,228.57,228.52,2.02000417]
[1759969042407,0.67,228.56,228.52,2.02000417]
[1759969042605,31.41,228.55,228.52,2.02000417]
[1759969042797,0.67,228.54,228.52,2.02000417]
[1759969043002,0.67,228.53,228.51,2.02000417]
[1759969043213,31.41,228.55,228.52,2.02000417]
[1759969043410,0.67,228.54,228.48,0.09]
[1759969044313,5.04560659,228.54,228.48,0.09]
[1759969044631,5.04560659,228.54,228.53,2.02000417]
[1759969045218,4.37560659,228.54,228.53,2.02000417]
[1759969045530,5.04560659,228.54,228.52,2.02000417]
[1759969045708,0.67,228.53,228.52,2.02000417]
[1759969046832,5.04579311,228.53,228.52,2.02000417]
[1759969051828,5.04579311,228.53,228.46,4.4671106]
[1759969052035,4.37579311,228.53,228.52,2.02000417]
[1759969052611,5.04579311,228.53,228.52,2.02000417]
[1759969057037,30.74,228.55,228.52,2.02000417]
[1759969057230,30.74,228.55,228.54,2.02000417]
[1759969057537,31.44,228.55,228.54,2.02000417]
[1759969058125,30.74,228.55,228.54,2.02000417]
[1759969058548,35.05506274,228.57,228.54,2.02000417]
[1759969058746,35.05506274,228.57,228.51,4.37599228]
[1759969058947,35.75506274,228.57,228.56,2.02000417]
[1759969061852,35.75506274,228.57,228.56,1.29404381]
[1759969062061,35.75506274,228.57,228.51,4.37616782]
[1759969062252,35.05506274,228.57,228.56,1.29404381]
[1759969062552,35.05506274,228.57,228.51,4.37616782]
[1759969062742,35.05506274,228.57,228.56,1.29404381]
[1759969062930,35.75506274,228.57,228.56,1.29404381]
[1759969063452,35.75506274,228.57,228.55,1.29404381]
[1759969063634,0.72,228.56,228.55,1.29404381]
[1759969068355,35.05506274,228.57,228.55,1.29404381]
[1759969068557,35.77506274,228.57,228.56,1.29404381]
[1759969068851,35.77506274,228.57,228.52,4.37596571]
[1759969069060,35.05506274,228.57,228.56,1.29404381]
[1759969069633,35.77506274,228.57,228.56,1.29404381]
[1759969071953,0.2,228.58,228.56,1.29404381]
[1759969072167,0.2,228.58,228.57,1.29404381]
[1759969075060,0.2,228.58,228.57,10.93524639]
[1759969075550,0.2,228.58,228.57,21.8117216]
[1759969077862,0.2,228.59,228.58,31.67647521]
[1759969078058,0.2,228.59,228.58,38.23669426]
[1759969078746,0.2,228.59,228.58,17.43669426]
[1759969079641,0.2,228.6,228.58,52.4315302]
[1759969079847,0.2,228.6,228.59,33.06051902]
[1759969080365,0.2,228.69,228.6,31.67647521]
[1759969080572,0.92,228.69,228.68,1.29404381]
[1759969082643,0.2,228.69,228.68,1.29404381]
[1759969082839,0.2,228.69,228.68,10.84314191]
[1759969083040,0.2,228.69,228.68,21.80961712]
[1759969083351,0.2,228.71,228.69,10.87647521]
[1759969083554,0.2,228.71,228.7,63.61051902]
[1759969083754,0.2,228.71,228.7,76.93286703]
[1759969084248,0.2,228.71,228.7,81.30540747]
[1759969085563,0.72,228.78,228.71,31.67647521]
[1759969085764,0.72,228.78,228.77,1.29404381]
[1759969086779,0.2,228.8,228.77,5.66523123]
[1759969086966,0.2,228.8,228.79,6.47021905]
[1759969087271,0.2,228.8,228.79,17.34669426]
[1759969088362,0.2,228.81,228.8,10.87647521]
[1759969088566,0.68,228.89,228.83,20.8]
[1759969088773,0.68,228.89,228.88,1.29404381]
[1759969092657,0.68,228.91,228.88,1.29404381]
[1759969092876,4.36814746,228.93,228.9,1.29404381]
[1759969093078,4.36814746,228.93,228.86,4.36948059]
[1759969093079,4.36814746,228.93,228.92,1.29404381]
[1759969093459,5.04814746,228.93,228.92,1.29404381]
[1759969095887,0.68,228.99,228.94,10.87647521]
[1759969096096,0.2,229.02,228.98,1.29404381]
[1759969096097,0.68,229.01,228.98,1.29404381]
[1759969096387,0.2,229.02,229.0,1.29404381]
[1759969096570,0.2,229.02,229.01,17.43669426]
[1759969096777,0.68,229.09,229.02,10.87647521]
[1759969096981,0.68,229.09,229.08,1.29404381]
[1759969097882,0.88,229.11,229.08,1.29404381]
[1759969098078,0.2,229.11,229.1,1.29404381]
[1759969098670,0.88,229.11,229.1,1.29404381]
[1759969100202,4.36490615,229.1,229.03,20.8]
[1759969100502,0.68,229.09,229.05,1.29404381]
[1759969100686,0.68,229.08,229.05,1.29404381]
[1759969100868,0.68,229.07,229.05,1.29404381]
[1759969101069,0.68,229.06,229.05,1.29404381]
[1759969101269,0.68,229.06,229.0,20.8]
[1759969101469,0.68,229.05,229.0,20.8]
[1759969101669,0.68,229.04,229.0,25.16680046]
[1759969101871,15.27717153,229.1,229.0,25.16680046]
[1759969102097,0.68,229.09,229.0,25.16680046]
[1759969102298,0.68,229.08,229.0,20.8]
[1759969102607,0.68,229.07,229.0,20.8]
[1759969102806,0.68,229.06,229.05,1.29404381]
[1759969104005,0.68,229.09,229.05,1.29404381]
[1759969104294,0.2,229.11,229.08,1.29404381]
[1759969104295,4.56481906,229.11,229.08,1.29404381]
[1759969104512,4.56481906,229.11,229.1,1.29404381]
[1759969104884,5.24481906,229.11,229.1,1.29404381]
[1759969105081,5.24481906,229.11,229.09,1.29404381]
[1759969105276,0.68,229.1,229.09,1.29404381]
[1759969105988,5.04499679,229.1,229.03,4.36624023]
[1759969106194,5.04499679,229.1,229.09,1.29404381]
[1759969107888,0.2,229.11,229.09,1.29404381]
[1759969108092,0.88,229.11,229.1,1.29404381]
[1759969109087,5.24480378,229.11,229.03,20.8]
[1759969109298,0.68,229.1,229.08,1.29404381]
[1759969109602,4.56480378,229.11,229.09,1.29404381]
[1759969110090,0.68,229.1,229.09,1.29404381]
[1759969112386,5.04490615,229.1,229.09,1.29404381]
[1759969113683,5.04490615,229.1,229.03,25.16617426]
[1759969113900,4.36490615,229.1,229.09,1.29404381]
[1759969114619,5.04490615,229.1,229.09,1.29404381]
[1759969115679,0.2,229.11,229.09,1.29404381]
[1759969116008,0.2,229.11,229.1,1.29404381]
[1759969118515,0.2,229.11,229.07,25.1654728]
[1759969118714,0.2,229.11,229.1,1.29404381]
[1759969120323,0.2,229.11,229.07,25.1654728]
[1759969120494,0.87,229.11,229.1,1.29404381]
[1759969121186,0.2,229.11,229.1,1.29404381]
[1759969123891,0.2,229.11,229.1,2.01195231]
[1759969124613,0.89,229.11,229.06,20.89]
[1759969124794,0.89,229.11,229.1,2.01195231]
[1759969125193,4.36222923,229.25,229.1,12.88842752]
[1759969125397,0.69,229.21,229.2,2.01195231]
[1759969125932,0.1,229.27,229.2,2.01195231]
[1759969125933,0.69,229.26,229.2,2.01195231]
[1759969126098,0.69,229.25,229.23,2.01195231]
[1759969126301,0.69,229.24,229.22,2.01195231]
[1759969126715,0.1,229.27,229.23,4.11390462]
[1759969126910,0.1,229.27,229.26,2.01195231]
[1759969127228,0.1,229.27,229.26,12.98366191]
[1759969127416,0.79,229.27,229.26,2.01195231]
[1759969128225,5.15166964,229.27,229.17,0.09]
[1759969128533,5.15166964,229.27,229.23,2.01195231]
[1759969128710,0.69,229.26,229.23,2.01195231]
[1759969128904,0.69,229.25,229.23,2.01195231]
[1759969129104,0.69,229.24,229.23,2.01195231]
[1759969130004,5.15166964,229.27,229.23,2.01195231]
[1759969130222,4.46166964,229.27,229.26,2.01195231]
[1759969130911,5.15166964,229.27,229.26,2.01195231]
[1759969131302,0.1,229.27,229.26,2.01195231]
[1759969135925,0.1,229.27,229.24,20.8]
[1759969136214,0.1,229.27,229.26,2.01195231]
[1759969136923,0.1,229.27,229.24,27.17411385]
[1759969137230,0.1,229.27,229.24,22.81195231]
[1759969138244,0.1,229.27,229.24,27.17417488]
[1759969139230,0.1,229.27,229.26,2.01195231]
[1759969139830,0.1,229.27,229.26,2.10195231]
[1759969140331,0.1,229.27,229.26,38.14028741]
[1759969140712,0.1,229.34,229.3,20.8]
[1759969140929,0.1,229.34,229.33,2.01195231]
[1759969141528,0.79,229.34,229.33,2.01195231]
[1759969141823,0.69,229.44,229.37,31.67647521]
[1759969142021,0.1,229.47,229.43,2.01195231]
[1759969142022,0.69,229.46,229.43,2.01195231]
[1759969142328,4.45790881,229.47,229.37,31.67647521]
[1759969142329,0.69,229.45,229.37,31.67647521]
[1759969142641,0.69,229.45,229.37,31.76647521]
[1759969143424,5.04825432,229.45,229.44,2.01195231]
[1759969143919,38.75582659,229.45,229.39,2.01195231]
[1759969144218,20.8,229.42,229.26,10.89443374]
[1759969144527,2.01195231,229.39,229.27,10.87647521]
[1759969144849,2.70195231,229.38,229.32,2.01195231]
[1759969145021,0.69,229.37,229.32,2.01195231]
[1759969145218,0.69,229.36,229.32,2.01195231]
[1759969145552,4.36014824,229.35,229.3,2.01195231]
[1759969145719,0.66,229.34,229.3,2.01195231]
[1759969145926,0.66,229.33,229.3,2.01195231]
[1759969146136,0.66,229.32,229.29,2.01195231]
[1759969146337,0.66,229.31,229.29,2.01195231]
[1759969146528,0.66,229.3,229.29,2.01195231]
[1759969147229,0.66,229.3,229.28,2.01195231]
[1759969147426,0.66,229.29,229.28,2.01195231]
[1759969151548,0.66,229.31,229.28,2.01195231]
[1759969151738,6.37210055,229.35,229.3,2.01195231]
[1759969152128,0.66,229.34,229.3,2.01195231]
[1759969152430,0.66,229.33,229.3,2.01195231]
[1759969152644,0.66,229.32,229.29,2.01195231]
[1759969152945,4.36109899,229.3,229.29,2.01195231]
[1759969153129,5.02109899,229.3,229.29,2.01195231]
[1759969155646,5.02033836,229.34,229.29,2.01195231]
[1759969155941,5.02033836,229.34,229.33,2.01195231]
[1759969156956,4.36033836,229.34,229.33,2.01195231]
[1759969157332,5.0191979,229.4,229.33,6.46243]
[1759969157652,5.0191979,229.4,229.39,2.01195231]
[1759969158842,11.87521226,229.42,229.39,2.01195231]
[1759969159044,0.66,229.41,229.4,2.01195231]
[1759969159247,4.35898499,229.42,229.4,2.01195231]
[1759969159441,4.35898499,229.42,229.41,2.01195231]
[1759969159750,42.43619802,229.44,229.41,2.01195231]
[1759969159751,35.89853249,229.44,229.41,2.01195231]
[1759969159959,35.89853249,229.44,229.42,2.01195231]
[1759969160263,5.01853249,229.44,229.42,2.01195231]
[1759969161462,42.53470984,229.47,229.43,2.01195231]
[1759969161649,0.66,229.46,229.44,2.01195231]
[1759969162132,5.01805804,229.46,229.44,2.01195231]
[1759969162633,0.66,229.45,229.44,2.01195231]
[1759969162957,0.66,229.45,229.43,2.01195231]
[1759969164957,4.35839891,229.45,229.44,2.01195231]
[1759969165545,5.01839891,229.45,229.44,2.01195231]
[1759969168233,5.01839891,229.45,229.43,2.01195231]
[1759969168430,0.66,229.44,229.39,2.01195231]
[1759969168630,0.66,229.43,229.37,20.8]
[1759969168858,0.66,229.42,229.38,2.01195231]
[1759969169440,0.66,229.42,229.39,2.01195231]
[1759969169742,0.66,229.44,229.4,2.01195231]
[1759969169948,0.66,229.43,229.4,2.01195231]
[1759969170353,4.35805804,229.46,229.42,2.01195231]
[1759969170538,0.66,229.45,229.41,2.01195231]
[1759969170743,0.66,229.44,229.41,2.01195231]
[1759969170940,0.66,229.43,229.41,2.01195231]
[1759969171142,0.66,229.42,229.4,2.01195231]
[1759969171550,0.66,229.44,229.4,2.01195231]
[1759969171754,0.66,229.43,229.4,2.01195231]
[1759969172265,0.66,229.43,229.37,25.15972682]
[1759969172469,0.66,229.43,229.4,2.01195231]
[1759969172470,4.35881788,229.42,229.4,2.01195231]
[1759969173159,4.35881788,229.42,229.37,25.15972682]
[1759969173361,4.35881788,229.42,229.4,2.01195231]
[1759969173565,4.35864841,229.43,229.41,2.01195231]
[1759969173870,10.89514512,229.46,229.42,2.01195231]
[1759969173871,11.55514512,229.46,229.42,2.01195231]
[1759969174071,0.66,229.45,229.42,2.01195231]
[1759969175155,5.01824798,229.45,229.42,2.01195231]
[1759969175962,5.01824798,229.45,229.43,2.01195231]
[1759969176156,0.68,229.44,229.43,2.01195231]
[1759969176359,5.03805804,229.46,229.38,0.09]
[1759969176569,5.03805804,229.46,229.37,20.8]
[1759969176570,0.68,229.45,229.43,2.01195231]
[1759969176863,4.35805804,229.46,229.44,2.01195231]
[1759969177256,5.03805804,229.46,229.44,2.01195231]
[1759969177866,0.68,229.45,229.42,2.01195231]
[1759969178052,0.68,229.44,229.42,2.01195231]
[1759969178254,0.68,229.43,229.38,10.87647521]
[1759969178568,0.68,229.45,229.42,2.01195231]
[1759969178753,0.68,229.44,229.43,2.01195231]
[1759969180348,30.98,229.47,229.43,2.01195231]
[1759969180553,36.01786869,229.47,229.44,2.01195231]
[1759969180872,36.01786869,229.47,229.4,0.09]
[1759969180873,36.01786869,229.47,229.45,2.01195231]
[1759969181170,36.01786869,229.47,229.46,2.01195231]
[1759969181381,35.33786869,229.47,229.46,2.01195231]
[1759969181550,4.45786869,229.47,229.46,2.01195231]
[1759969181751,0.1,229.47,229.46,2.01195231]
[1759969183876,0.1,229.47,229.46,1.28366902]
[1759969184688,0.1,229.47,229.43,4.44861422]
[1759969184847,0.1,229.47,229.46,1.28366902]
[1759969186090,0.1,229.47,229.46,14.35274473]
[1759969187789,0.1,229.47,229.46,13.06907571]
[1759969187977,0.1,229.47,229.46,1.28366902]
[1759969188973,0.1,229.47,229.44,25.15843516]
[1759969189188,0.1,229.47,229.46,1.28366902]
[1759969190974,0.1,229.47,229.46,14.65992944]
[1759969192090,0.1,229.47,229.46,13.37626042]
[1759969192285,0.1,229.47,229.46,1.28366902]
[1759969193497,0.1,229.47,229.41,4.35892231]
[1759969193691,0.1,229.47,229.46,6.5083451]
[1759969194986,0.1,229.47,229.46,6.4183451]
[1759969195187,0.1,229.47,229.45,51.54]
[1759969195494,0.1,229.47,229.46,6.4183451]
[1759969195805,0.1,229.47,229.46,10.86640314]
[1759969196892,0.1,229.47,229.46,54.52345478]
[1759969197690,0.1,229.47,229.46,54.43345478]
[1759969198411,0.8,229.47,229.46,12.93705164]
[1759969198703,5.15786813,229.47,229.46,1.28366902]
[1759969198882,5.15786813,229.47,229.45,1.28366902]
[1759969199082,0.7,229.46,229.45,1.28366902]
[1759969200508,0.7,229.46,229.4,30.72]
[1759969200803,0.7,229.46,229.45,1.28366902]
[1759969200980,0.1,229.47,229.45,1.28366902]
[1759969201182,0.8,229.47,229.46,1.28366902]
[1759969201379,0.8,229.47,229.46,14.1684339]
[1759969201909,5.15786813,229.47,229.46,14.1684339]
[1759969202103,0.1,229.47,229.46,12.88476488]
[1759969202402,0.1,229.47,229.46,10.77640314]
[1759969202706,0.1,229.47,229.46,21.74287835]
[1759969202890,0.1,229.47,229.46,34.8903842]
[1759969205514,0.1,229.47,229.46,34.8003842]
[1759969206014,0.1,229.47,229.46,34.8903842]
[1759969206315,0.1,229.47,229.46,13.14750585]
[1759969206611,0.81,229.47,229.46,1.28366902]
[1759969207711,0.81,229.47,229.46,5.64172706]
[1759969207902,0.81,229.47,229.46,1.28366902]
[1759969209218,0.1,229.47,229.46,1.28366902]
[1759969209431,0.71,229.56,229.5,10.87647521]
[1759969209732,0.71,229.56,229.55,1.28366902]
[1759969211015,0.1,229.57,229.56,10.87647521]
[1759969211212,0.71,229.65,229.56,17.38482031]
[1759969211508,0.1,229.67,229.56,17.38482031]
[1759969211509,0.1,229.67,229.64,1.28366902]
[1759969211718,0.81,229.67,229.66,1.28366902]
[1759969213218,0.81,229.67,229.61,20.8]
[1759969213521,0.1,229.7,229.65,20.8]
[1759969213724,0.71,229.69,229.53,0.09]
[1759969214017,1.28366902,229.63,229.49,0.09]
[1759969214221,0.71,229.62,229.48,26.5489028]
[1759969214423,1.28366902,229.57,229.48,26.5489028]
[1759969214600,1.99366902,229.56,229.49,1.28366902]
[1759969214805,0.71,229.55,229.5,1.28366902]
[1759969215015,0.71,229.54,229.5,1.28366902]
[1759969215209,0.71,229.53,229.39,0.09]
[1759969215414,4.35691878,229.52,229.46,1.28366902]
[1759969215602,0.71,229.51,229.47,1.28366902]
[1759969215817,0.71,229.5,229.43,10.87647521]
[1759969216004,0.71,229.5,229.49,3.4023807]
[1759969216404,0.71,229.53,229.49,3.4023807]
[1759969216624,30.04,229.57,229.52,3.4023807]
[1759969216826,4.3561596,229.56,229.52,3.4023807]
[1759969218828,4.35540069,229.6,229.5,4.35729847]
[1759969219036,0.71,229.59,229.57,3.4023807]
[1759969219209,4.35540069,229.6,229.57,3.4023807]
[1759969219410,0.71,229.58,229.57,3.4023807]
[1759969219611,0.71,229.58,229.56,3.4023807]
[1759969219810,0.71,229.57,229.56,3.4023807]
[1759969220732,0.71,229.57,229.5,20.8]
[1759969220733,5.06610406,229.57,229.45,0.09]
[1759969220935,5.06610406,229.57,229.52,3.4023807]
[1759969221148,4.35610406,229.57,229.52,3.4023807]
[1759969221340,0.71,229.56,229.52,3.4023807]
[1759969221510,0.71,229.55,229.52,3.4023807]
[1759969221714,0.71,229.54,229.53,3.4023807]
[1759969222739,0.71,229.54,229.52,3.4023807]
[1759969222925,0.71,229.53,229.52,3.4023807]
[1759969223828,0.71,229.53,229.47,20.8]
[1759969224146,0.71,229.53,229.51,3.4023807]
[1759969224734,0.71,229.53,229.52,3.4023807]
[1759969224930,35.75647437,229.55,229.42,0.09]
[1759969225137,3.4023807,229.51,229.45,3.4023807]
[1759969225332,0.71,229.5,229.45,3.4023807]
[1759969225543,0.71,229.49,229.39,17.50530607]
[1759969225752,32.11,229.48,229.43,3.4023807]
[1759969225954,0.71,229.47,229.36,10.87647521]
[1759969226238,0.71,229.46,229.43,3.4023807]
[1759969226441,0.71,229.45,229.42,3.4023807]
[1759969226746,0.71,229.44,229.42,3.4023807]
[1759969227124,0.71,229.44,229.43,3.4023807]
[1759969227640,35.75783577,229.48,229.43,3.4023807]
[1759969227846,0.71,229.47,229.45,3.4023807]
[1759969228022,0.71,229.47,229.41,4.35899735]
[1759969228023,31.38,229.47,229.46,3.4023807]
[1759969228338,32.09,229.47,229.46,3.4023807]
[1759969228726,0.71,229.47,229.46,3.4023807]
[1759969229152,5.06786813,229.47,229.39,25.15938627]
[1759969229323,31.38,229.46,229.43,3.4023807]
[1759969229648,0.71,229.45,229.43,3.4023807]
[1759969229946,0.71,229.45,229.42,3.4023807]
[1759969230142,0.71,229.44,229.42,3.4023807]
[1759969230345,0.71,229.44,229.43,3.4023807]
[1759969230931,31.38,229.46,229.43,3.4023807]
[1759969231142,32.09,229.46,229.44,3.4023807]
[1759969231334,0.71,229.45,229.44,3.4023807]
[1759969231538,0.71,229.45,229.43,3.4023807]
[1759969232043,4.35748783,229.5,229.44,3.4023807]
[1759969232346,22.52540066,242.82,229.45,3.4023807]
[1759969232347,0.71,229.48,229.45,3.4023807]
[1759969232548,32.07,229.47,229.45,3.4023807]
[1759969233635,5.06789121,229.47,229.45,3.4023807]
[1759969233845,31.36,229.46,229.41,4.35892671]
[1759969234041,31.36,229.46,229.44,3.4023807]
[1759969234248,31.36,229.46,229.45,3.4023807]
[1759969234249,31.34,229.46,229.45,3.4023807]
[1759969235350,0.71,229.48,229.45,3.4023807]
[1759969235553,32.05,229.47,229.45,3.4023807]
[1759969235733,32.05,229.47,229.46,3.4023807]
[1759969236335,32.05,229.47,229.45,3.4023807]
[1759969236539,0.69,229.46,229.45,3.4023807]
[1759969237064,32.01,229.46,229.45,3.4023807]
[1759969237359,0.69,229.46,229.45,3.4023807]
[1759969237530,31.32,229.46,229.45,3.4023807]
[1759969237946,31.32,229.46,229.45,1.28388231]
[1759969239649,0.69,229.48,229.45,1.28388231]
[1759969239964,1.28388231,229.53,229.47,1.28388231]
[1759969240162,0.69,229.5,229.47,1.28388231]
[1759969240367,0.69,229.49,229.47,1.28388231]
[1759969242140,31.28,229.48,229.47,1.28388231]
[1759969242338,31.28,229.48,229.46,1.28388231]
[1759969242553,31.97,229.48,229.45,1.28388231]
[1759969242757,0.71,229.47,229.45,1.28388231]
[1759969242977,31.28,229.48,229.46,1.28388231]
[1759969243143,31.99,229.48,229.46,1.28388231]
[1759969243665,0.71,229.48,229.46,1.28388231]
[1759969243871,31.26,229.47,229.46,1.28388231]
[1759969244041,31.97,229.47,229.45,1.28388231]
[1759969244241,0.71,229.46,229.45,1.28388231]
[1759969244935,0.71,229.46,229.41,1.28388231]
[1759969245160,0.71,229.46,229.37,23.97087825]
[1759969245161,0.71,229.45,229.37,13.07158838]
[1759969245337,0.71,229.44,229.41,1.28388231]
[1759969245539,31.95,229.43,229.35,20.89]
[1759969245865,0.71,229.42,229.33,10.87647521]
[1759969246054,0.71,229.42,229.34,0.09]
[1759969246250,31.24,229.41,229.4,2.00709028]
[1759969246451,31.24,229.41,229.34,36.15118426]
[1759969246452,31.95,229.41,229.35,10.87647521]
[1759969246653,31.95,229.41,229.4,2.00709028]
[1759969247061,31.24,229.41,229.4,2.00709028]
[1759969247765,31.95,229.41,229.4,2.00709028]
[1759969248065,0.71,229.41,229.4,2.00709028]
[1759969248367,31.93,229.41,229.4,2.00709028]
[1759969248978,31.22,229.41,229.4,2.00709028]
[1759969249176,0.71,229.44,229.4,2.00709028]
[1759969249479,4.35835815,229.45,229.35,12.97356549]